[Event "*** Titled Tuesday Blitz"]
[Site "Chess.com"]
[Date "2019.05.07"]
[Round "2"]
[White "Slovak_fighter2000"]
[Black "riconaipe"]
[Result "0-1"]
[WhiteElo "2450"]
[BlackElo "2447"]
[TimeControl "180+2"]
[EndTime "13:20:44 PDT"]
[Termination "riconaipe won by checkmate"]

1. d4 {[%clk 0:03:01.8]} 1... d5 {[%clk 0:02:58.9]} 2. Nf3 {[%clk 0:03:02.5]}
2... e6 {[%clk 0:02:58.8]} 3. Bf4 {[%clk 0:03:03.4]} 3... Bd6 {[%clk 0:02:59]}
4. e3 {[%clk 0:03:04.9]} 4... Ne7 {[%clk 0:02:59.7]} 5. Bd3 {[%clk 0:03:05.6]}
5... Bxf4 {[%clk 0:02:55.5]} 6. exf4 {[%clk 0:03:06.4]} 6... c5 {[%clk
0:02:57.1]} 7. c3 {[%clk 0:03:07.4]} 7... cxd4 {[%clk 0:02:56.8]} 8. Nxd4 {[%clk
0:02:56.9]} 8... Nbc6 {[%clk 0:02:58.3]} 9. Nf3 {[%clk 0:02:54.2]} 9... Ng6
{[%clk 0:02:56]} 10. g3 {[%clk 0:02:54.4]} 10... O-O {[%clk 0:02:55.8]} 11. h4
{[%clk 0:02:53.5]} 11... e5 {[%clk 0:02:56.5]} 12. h5 {[%clk 0:02:52.6]} 12...
e4 {[%clk 0:02:57.4]} 13. hxg6 {[%clk 0:02:49.1]} 13... hxg6 {[%clk 0:02:55.1]}
14. Ng5 {[%clk 0:02:41.9]} 14... exd3 {[%clk 0:02:52.9]} 15. Qf3 {[%clk
0:02:35.7]} 15... Re8+ {[%clk 0:02:49.3]} 16. Kd1 {[%clk 0:02:36.6]} 16... Bf5
{[%clk 0:02:40.6]} 17. Qg2 {[%clk 0:02:20.3]} 17... f6 {[%clk 0:02:30.2]} 18.
Rh8+ {[%clk 0:02:08.5]} 18... Kxh8 {[%clk 0:02:26.2]} 19. Qh2+ {[%clk
0:02:09.4]} 19... Kg8 {[%clk 0:02:24.7]} 20. Qh7+ {[%clk 0:02:11.3]} 20... Kf8
{[%clk 0:02:25.5]} 21. Qh8+ {[%clk 0:02:12.3]} 21... Ke7 {[%clk 0:02:25.9]} 22.
Qxg7+ {[%clk 0:02:13.4]} 22... Kd6 {[%clk 0:02:26.8]} 23. Nf7+ {[%clk
0:02:14.7]} 23... Kc5 {[%clk 0:02:26.3]} 24. Nxd8 {[%clk 0:02:13.2]} 24... Raxd8
{[%clk 0:02:27.9]} 25. Nd2 {[%clk 0:02:05.6]} 25... Kb6 {[%clk 0:02:18.3]} 26.
a4 {[%clk 0:01:58.1]} 26... a5 {[%clk 0:02:13]} 27. b4 {[%clk 0:01:53.9]} 27...
Re7 {[%clk 0:02:04.9]} 28. Qxf6 {[%clk 0:01:47.4]} 28... Rde8 {[%clk 0:02:05.6]}
29. Qd6 {[%clk 0:01:25.2]} 29... Re1# {[%clk 0:02:05.5]} 0-1

[Event "*** Titled Tuesday Blitz"]
[Site "Chess.com"]
[Date "2019.05.07"]
[Round "2"]
[White "bluejay1897"]
[Black "pedroholly22"]
[Result "1/2-1/2"]
[WhiteElo "2290"]
[BlackElo "2275"]
[TimeControl "180+2"]
[EndTime "13:20:48 PDT"]
[Termination "Game drawn by repetition"]

1. Nf3 {[%clk 0:03:01.9]} 1... Nf6 {[%clk 0:02:59.5]} 2. g3 {[%clk 0:03:01.5]}
2... g6 {[%clk 0:02:59.9]} 3. b3 {[%clk 0:03:02.2]} 3... Bg7 {[%clk 0:03:00.2]}
4. Bb2 {[%clk 0:03:03.7]} 4... O-O {[%clk 0:03:00.8]} 5. Bg2 {[%clk 0:03:04.9]}
5... d6 {[%clk 0:03:01.9]} 6. d4 {[%clk 0:03:06]} 6... Nc6 {[%clk 0:03:02.2]} 7.
O-O {[%clk 0:03:05.3]} 7... e5 {[%clk 0:02:58.4]} 8. dxe5 {[%clk 0:03:02.3]}
8... Ng4 {[%clk 0:02:58.6]} 9. c4 {[%clk 0:03:00.4]} 9... Ngxe5 {[%clk
0:02:58.3]} 10. Nxe5 {[%clk 0:03:00.2]} 10... Nxe5 {[%clk 0:02:58.5]} 11. Nc3
{[%clk 0:03:00.8]} 11... Rb8 {[%clk 0:02:50.6]} 12. Qc2 {[%clk 0:02:51.4]} 12...
a6 {[%clk 0:02:48.1]} 13. Rad1 {[%clk 0:02:47.8]} 13... Qe8 {[%clk 0:02:45.5]}
14. Nd5 {[%clk 0:02:45.5]} 14... Qd8 {[%clk 0:02:36.1]} 15. f4 {[%clk
0:02:44.1]} 15... Nd7 {[%clk 0:02:19.2]} 16. Bxg7 {[%clk 0:02:39]} 16... Kxg7
{[%clk 0:02:21.1]} 17. Qc3+ {[%clk 0:02:34.6]} 17... f6 {[%clk 0:02:18.8]} 18.
e4 {[%clk 0:02:30.8]} 18... c6 {[%clk 0:01:59.2]} 19. Ne3 {[%clk 0:02:23.4]}
19... Qe7 {[%clk 0:01:58.4]} 20. Qd4 {[%clk 0:02:01.5]} 20... Re8 {[%clk
0:01:58]} 21. Qxd6 {[%clk 0:02:01.6]} 21... Qxd6 {[%clk 0:01:58.3]} 22. Rxd6
{[%clk 0:02:03.2]} 22... Nc5 {[%clk 0:01:59]} 23. Rd4 {[%clk 0:01:54.2]} 23...
Ne6 {[%clk 0:01:59.2]} 24. Rd2 {[%clk 0:01:42.3]} 24... Nc5 {[%clk 0:01:59.3]}
25. Rd4 {[%clk 0:01:36.9]} 25... Ne6 {[%clk 0:01:59.4]} 26. Rd2 {[%clk
0:01:11.3]} 26... Nc5 {[%clk 0:01:59.5]} 27. Rd4 {[%clk 0:01:02.6]} 27... Ne6
{[%clk 0:01:59.7]} 28. Rd2 {[%clk 0:01:03.5]} 1/2-1/2

[Event "*** Titled Tuesday Blitz"]
[Site "Chess.com"]
[Date "2019.05.07"]
[Round "2"]
[White "Arystanner"]
[Black "x-6099009240"]
[Result "1-0"]
[WhiteElo "2748"]
[BlackElo "2363"]
[TimeControl "180+2"]
[EndTime "13:21:02 PDT"]
[Termination "Arystanner won by checkmate"]

1. e4 {[%clk 0:03:01.9]} 1... c5 {[%clk 0:03:00.8]} 2. Nf3 {[%clk 0:03:03]} 2...
d6 {[%clk 0:03:02.3]} 3. d4 {[%clk 0:03:04.2]} 3... cxd4 {[%clk 0:03:04.2]} 4.
Qxd4 {[%clk 0:03:05.7]} 4... Nc6 {[%clk 0:03:04.6]} 5. Bb5 {[%clk 0:03:07]} 5...
Bd7 {[%clk 0:03:06.3]} 6. Qd3 {[%clk 0:03:08]} 6... g6 {[%clk 0:03:06.8]} 7. c4
{[%clk 0:03:09.1]} 7... Bg7 {[%clk 0:03:08.2]} 8. Nc3 {[%clk 0:03:10.7]} 8...
Nf6 {[%clk 0:03:09.3]} 9. h3 {[%clk 0:03:11.6]} 9... O-O {[%clk 0:03:10.4]} 10.
Be3 {[%clk 0:03:12.8]} 10... a6 {[%clk 0:03:11.4]} 11. Bxc6 {[%clk 0:03:14.4]}
11... Bxc6 {[%clk 0:03:13]} 12. Nd4 {[%clk 0:03:16]} 12... e6 {[%clk 0:03:09]}
13. O-O {[%clk 0:03:16.9]} 13... Qe7 {[%clk 0:03:09.6]} 14. Rac1 {[%clk
0:03:18.1]} 14... Rfd8 {[%clk 0:03:10.8]} 15. Rfd1 {[%clk 0:03:19.5]} 15... Rd7
{[%clk 0:03:12]} 16. Nxc6 {[%clk 0:03:20]} 16... bxc6 {[%clk 0:03:12.8]} 17. c5
{[%clk 0:03:18.7]} 17... dxc5 {[%clk 0:03:11.8]} 18. Qc4 {[%clk 0:03:18.9]}
18... Bf8 {[%clk 0:03:08.4]} 19. Na4 {[%clk 0:03:11.8]} 19... Rxd1+ {[%clk
0:03:07.3]} 20. Rxd1 {[%clk 0:03:13.7]} 20... Nd7 {[%clk 0:03:08.7]} 21. b3
{[%clk 0:03:06.9]} 21... a5 {[%clk 0:02:44.9]} 22. g3 {[%clk 0:03:03.6]} 22...
Rb8 {[%clk 0:02:39.6]} 23. Kg2 {[%clk 0:02:54]} 23... Rb4 {[%clk 0:02:39.5]} 24.
Qc2 {[%clk 0:02:55.6]} 24... c4 {[%clk 0:02:28.7]} 25. bxc4 {[%clk 0:02:55.4]}
25... Qe8 {[%clk 0:01:53.8]} 26. Nb2 {[%clk 0:02:46.5]} 26... Bg7 {[%clk
0:01:46.2]} 27. Nd3 {[%clk 0:02:42.2]} 27... Rb7 {[%clk 0:01:44.9]} 28. Bd2
{[%clk 0:02:42.6]} 28... Qa8 {[%clk 0:01:04.4]} 29. Bc3 {[%clk 0:02:43.2]} 29...
Bxc3 {[%clk 0:00:57.1]} 30. Qxc3 {[%clk 0:02:44.3]} 30... Qa6 {[%clk 0:00:44.7]}
31. Ne5 {[%clk 0:02:43.2]} 31... Nf8 {[%clk 0:00:38]} 32. Ng4 {[%clk 0:02:41.6]}
32... f5 {[%clk 0:00:29.6]} 33. Nh6# {[%clk 0:02:42.1]} 1-0

[Event "*** Titled Tuesday Blitz"]
[Site "Chess.com"]
[Date "2019.05.07"]
[Round "2"]
[White "fm_magua"]
[Black "TastyFrenchFries"]
[Result "0-1"]
[WhiteElo "2468"]
[BlackElo "2438"]
[TimeControl "180+2"]
[EndTime "13:21:04 PDT"]
[Termination "TastyFrenchFries won by resignation"]

1. e4 {[%clk 0:03:01.9]} 1... e6 {[%clk 0:03:00.4]} 2. d3 {[%clk 0:03:02.7]}
2... d5 {[%clk 0:03:01.6]} 3. Nd2 {[%clk 0:03:04.6]} 3... c5 {[%clk 0:03:02.5]}
4. g3 {[%clk 0:03:05.5]} 4... Bd6 {[%clk 0:03:04.1]} 5. Bg2 {[%clk 0:03:07.2]}
5... Ne7 {[%clk 0:03:05.5]} 6. Ngf3 {[%clk 0:03:08.8]} 6... Nbc6 {[%clk
0:03:05.9]} 7. O-O {[%clk 0:03:10.4]} 7... O-O {[%clk 0:03:07.4]} 8. Re1 {[%clk
0:03:11.5]} 8... Bc7 {[%clk 0:02:41.9]} 9. Nf1 {[%clk 0:03:07.3]} 9... d4 {[%clk
0:02:40.4]} 10. e5 {[%clk 0:03:03.2]} 10... Ng6 {[%clk 0:02:38.5]} 11. Bf4
{[%clk 0:03:00.2]} 11... Nxf4 {[%clk 0:02:37.2]} 12. gxf4 {[%clk 0:03:01]} 12...
Ne7 {[%clk 0:02:37.7]} 13. Ng3 {[%clk 0:03:00.8]} 13... Nd5 {[%clk 0:02:36.1]}
14. Qd2 {[%clk 0:03:01.1]} 14... Ba5 {[%clk 0:02:33.8]} 15. Qc1 {[%clk
0:02:56.6]} 15... Bxe1 {[%clk 0:02:31.9]} 16. Nxe1 {[%clk 0:02:58.5]} 16... Bd7
{[%clk 0:02:23.2]} 17. Be4 {[%clk 0:02:59.4]} 17... f6 {[%clk 0:02:20.5]} 18.
Nf3 {[%clk 0:02:58.5]} 18... Bc6 {[%clk 0:02:17.4]} 19. Qd2 {[%clk 0:02:49.5]}
19... f5 {[%clk 0:02:09.2]} 20. Bxd5 {[%clk 0:02:50.3]} 20... Qxd5 {[%clk
0:02:11.1]} 21. Nh4 {[%clk 0:02:45.8]} 21... b5 {[%clk 0:01:59.4]} 22. f3 {[%clk
0:02:46.7]} 22... a5 {[%clk 0:01:56.3]} 23. Qg2 {[%clk 0:02:47.5]} 23... Ra7
{[%clk 0:01:52.2]} 24. Kf2 {[%clk 0:02:44.9]} 24... Qd8 {[%clk 0:01:50.9]} 25.
Qh3 {[%clk 0:02:42.3]} 25... a4 {[%clk 0:01:47.3]} 26. Rg1 {[%clk 0:02:40.6]}
26... c4 {[%clk 0:01:45]} 27. Nh5 {[%clk 0:02:40.4]} 27... cxd3 {[%clk
0:01:40.6]} 28. cxd3 {[%clk 0:02:41.2]} 28... Qd5 {[%clk 0:01:27.7]} 29. Nf6+
{[%clk 0:02:29.4]} 29... Rxf6 {[%clk 0:01:28.7]} 30. exf6 {[%clk 0:02:29.4]}
30... Qxa2 {[%clk 0:01:20.4]} 31. Rxg7+ {[%clk 0:02:24.1]} 31... Rxg7 {[%clk
0:01:19.8]} 32. fxg7 {[%clk 0:02:23.8]} 32... Qxb2+ {[%clk 0:01:19]} 33. Kg3
{[%clk 0:02:20.8]} 33... Qe2 {[%clk 0:01:13.5]} 34. Ng6 {[%clk 0:02:07.2]} 34...
Qxf3+ {[%clk 0:01:10.8]} 0-1

[Event "*** Titled Tuesday Blitz"]
[Site "Chess.com"]
[Date "2019.05.07"]
[Round "2"]
[White "rookoco"]
[Black "r31415"]
[Result "1-0"]
[WhiteElo "2756"]
[BlackElo "2352"]
[TimeControl "180+2"]
[EndTime "13:21:24 PDT"]
[Termination "rookoco won by resignation"]

1. e4 {[%clk 0:02:59]} 1... d6 {[%clk 0:03:00.2]} 2. Nf3 {[%clk 0:02:59.5]} 2...
Nf6 {[%clk 0:03:00.2]} 3. Nc3 {[%clk 0:03:00.9]} 3... g6 {[%clk 0:03:01.6]} 4.
d4 {[%clk 0:03:01.3]} 4... Bg7 {[%clk 0:03:03.2]} 5. h3 {[%clk 0:03:02.2]} 5...
O-O {[%clk 0:03:04.5]} 6. Be3 {[%clk 0:03:02.8]} 6... a6 {[%clk 0:03:05.8]} 7.
a4 {[%clk 0:03:03.2]} 7... b6 {[%clk 0:03:06.1]} 8. Bc4 {[%clk 0:03:02.7]} 8...
e6 {[%clk 0:03:05.9]} 9. Nd2 {[%clk 0:03:01.2]} 9... Nc6 {[%clk 0:02:56.4]} 10.
Be2 {[%clk 0:02:59.6]} 10... Bb7 {[%clk 0:02:52.4]} 11. O-O {[%clk 0:02:58.3]}
11... Re8 {[%clk 0:02:43.4]} 12. f4 {[%clk 0:02:57.3]} 12... e5 {[%clk
0:02:37.4]} 13. dxe5 {[%clk 0:02:54.9]} 13... dxe5 {[%clk 0:02:37.8]} 14. f5
{[%clk 0:02:55.3]} 14... Qe7 {[%clk 0:02:25.5]} 15. Bc4 {[%clk 0:02:55.1]} 15...
Qb4 {[%clk 0:02:16.3]} 16. fxg6 {[%clk 0:02:52.9]} 16... hxg6 {[%clk 0:02:17]}
17. Bg5 {[%clk 0:02:53.7]} 17... Na5 {[%clk 0:01:28.7]} 18. Ba2 {[%clk
0:02:50.9]} 18... Qd6 {[%clk 0:01:11]} 19. Qf3 {[%clk 0:02:45.3]} 19... Rf8
{[%clk 0:00:31.9]} 20. Bxf6 {[%clk 0:02:39.9]} 20... Qxd2 {[%clk 0:00:27.3]} 21.
Bxg7 {[%clk 0:02:40]} 21... Qd4+ {[%clk 0:00:22.1]} 22. Kh1 {[%clk 0:02:40.4]}
22... Kxg7 {[%clk 0:00:24]} 23. Qf6+ {[%clk 0:02:39.6]} 23... Kh7 {[%clk
0:00:24.8]} 24. Bxf7 {[%clk 0:02:34.1]} 24... Bxe4 {[%clk 0:00:25.7]} 25. Nxe4
{[%clk 0:02:29]} 25... Qxe4 {[%clk 0:00:27]} 26. Rae1 {[%clk 0:02:26.6]} 26...
Qxc2 {[%clk 0:00:28]} 27. Rxe5 {[%clk 0:02:24.2]} 27... Nc6 {[%clk 0:00:16.8]}
28. Rg5 {[%clk 0:02:23.6]} 28... Rad8 {[%clk 0:00:05]} 29. Bxg6+ {[%clk
0:02:22.8]} 1-0

[Event "*** Titled Tuesday Blitz"]
[Site "Chess.com"]
[Date "2019.05.07"]
[Round "2"]
[White "djano"]
[Black "joppie2"]
[Result "0-1"]
[WhiteElo "2356"]
[BlackElo "2756"]
[TimeControl "180+2"]
[EndTime "13:21:30 PDT"]
[Termination "joppie2 won by resignation"]

1. Nf3 {[%clk 0:03:01.7]} 1... g6 {[%clk 0:03:01.3]} 2. c4 {[%clk 0:03:02.4]}
2... Bg7 {[%clk 0:03:03.2]} 3. g3 {[%clk 0:03:03.7]} 3... Nf6 {[%clk 0:03:04.1]}
4. Bg2 {[%clk 0:03:04.8]} 4... c5 {[%clk 0:03:05.1]} 5. O-O {[%clk 0:03:05.7]}
5... O-O {[%clk 0:03:02.6]} 6. Nc3 {[%clk 0:03:06.8]} 6... d5 {[%clk 0:03:02.9]}
7. cxd5 {[%clk 0:03:07.8]} 7... Nxd5 {[%clk 0:03:04.8]} 8. d4 {[%clk 0:03:09.2]}
8... Nxc3 {[%clk 0:02:56.9]} 9. bxc3 {[%clk 0:03:05.1]} 9... Nc6 {[%clk
0:02:58.8]} 10. d5 {[%clk 0:03:03.7]} 10... Na5 {[%clk 0:02:58.8]} 11. Qd2
{[%clk 0:03:00.7]} 11... Nc4 {[%clk 0:02:58.7]} 12. Qd3 {[%clk 0:03:01.7]} 12...
Nd6 {[%clk 0:02:50.2]} 13. e4 {[%clk 0:03:01.3]} 13... Bd7 {[%clk 0:02:29.3]}
14. Rb1 {[%clk 0:02:58.5]} 14... Qa5 {[%clk 0:02:28.2]} 15. Bg5 {[%clk
0:02:53.3]} 15... Bb5 {[%clk 0:02:24.5]} 16. Rxb5 {[%clk 0:02:50]} 16... Qxb5
{[%clk 0:02:18.6]} 17. Qxb5 {[%clk 0:02:51]} 17... Nxb5 {[%clk 0:02:20.5]} 18.
c4 {[%clk 0:02:51.2]} 18... Nc3 {[%clk 0:02:18.7]} 19. Bxe7 {[%clk 0:02:51.4]}
19... Rfe8 {[%clk 0:02:18.3]} 20. d6 {[%clk 0:02:52.3]} 20... Nxe4 {[%clk
0:02:18.3]} 21. Re1 {[%clk 0:02:41.2]} 21... f5 {[%clk 0:02:19.1]} 22. Rb1
{[%clk 0:02:18.8]} 22... Bf8 {[%clk 0:02:04.1]} 23. Rxb7 {[%clk 0:02:14.8]}
23... Bxe7 {[%clk 0:02:04.6]} 24. dxe7 {[%clk 0:02:14.7]} 24... Rab8 {[%clk
0:01:51.9]} 25. Rd7 {[%clk 0:02:12.7]} 25... Kf7 {[%clk 0:01:49]} 26. Rxa7
{[%clk 0:01:56.1]} 26... Rb1+ {[%clk 0:01:32.9]} 27. Bf1 {[%clk 0:01:56.4]}
27... Rxe7 {[%clk 0:01:28.2]} 28. Ra8 {[%clk 0:01:54.9]} 28... g5 {[%clk
0:01:22.3]} 29. Kg2 {[%clk 0:01:52.2]} 29... Rb2 {[%clk 0:01:23.3]} 30. Kg1
{[%clk 0:01:45.7]} 30... g4 {[%clk 0:01:19.6]} 0-1

[Event "*** Titled Tuesday Blitz"]
[Site "Chess.com"]
[Date "2019.05.07"]
[Round "2"]
[White "Casablanca"]
[Black "ZuchBolt"]
[Result "0-1"]
[WhiteElo "2146"]
[BlackElo "2268"]
[TimeControl "180+2"]
[EndTime "13:21:31 PDT"]
[Termination "ZuchBolt won by resignation"]

1. c4 {[%clk 0:03:01.9]} 1... e5 {[%clk 0:03:00.1]} 2. Nc3 {[%clk 0:03:02.3]}
2... Bb4 {[%clk 0:02:59.8]} 3. g3 {[%clk 0:03:01]} 3... Nf6 {[%clk 0:02:57.1]}
4. Bg2 {[%clk 0:03:01.6]} 4... O-O {[%clk 0:02:56.8]} 5. d3 {[%clk 0:03:00.2]}
5... Nc6 {[%clk 0:02:56.6]} 6. Bd2 {[%clk 0:03:00.8]} 6... Bxc3 {[%clk
0:02:53.5]} 7. Bxc3 {[%clk 0:02:59.9]} 7... d5 {[%clk 0:02:54.8]} 8. cxd5 {[%clk
0:03:01]} 8... Nxd5 {[%clk 0:02:56.7]} 9. Nf3 {[%clk 0:03:00.2]} 9... Nxc3
{[%clk 0:02:57.2]} 10. bxc3 {[%clk 0:03:01.2]} 10... Be6 {[%clk 0:02:54.5]} 11.
O-O {[%clk 0:03:02]} 11... h6 {[%clk 0:02:53.8]} 12. Qa4 {[%clk 0:03:02.9]}
12... Qd7 {[%clk 0:02:53.3]} 13. Nd2 {[%clk 0:03:02]} 13... Bh3 {[%clk
0:02:50.7]} 14. Bxh3 {[%clk 0:02:50.7]} 14... Qxh3 {[%clk 0:02:52.6]} 15. Qe4
{[%clk 0:02:45.5]} 15... f5 {[%clk 0:02:47.1]} 16. Qd5+ {[%clk 0:02:45]} 16...
Kh8 {[%clk 0:02:47.3]} 17. Qg2 {[%clk 0:02:46.5]} 17... Qh5 {[%clk 0:02:45.8]}
18. Qf3 {[%clk 0:02:47.2]} 18... Qg6 {[%clk 0:02:45]} 19. Rab1 {[%clk 0:02:38]}
19... b6 {[%clk 0:02:45.8]} 20. e3 {[%clk 0:02:19.3]} 20... Rae8 {[%clk
0:02:45.4]} 21. d4 {[%clk 0:02:19.6]} 21... f4 {[%clk 0:02:37.4]} 22. d5 {[%clk
0:02:02.3]} 22... e4 {[%clk 0:02:26.1]} 23. Nxe4 {[%clk 0:01:52]} 23... Ne5
{[%clk 0:02:26.7]} 24. Qh1 {[%clk 0:01:40.4]} 24... f3 {[%clk 0:02:14]} 25. Rb4
{[%clk 0:01:32.1]} 25... a5 {[%clk 0:02:12.4]} 26. Rd4 {[%clk 0:01:32.2]} 26...
Rf5 {[%clk 0:01:51.3]} 27. Nd2 {[%clk 0:01:12.6]} 27... Ref8 {[%clk 0:01:50]}
28. Nc4 {[%clk 0:01:10.4]} 28... Nxc4 {[%clk 0:01:42.8]} 29. Rxc4 {[%clk
0:01:11.4]} 29... Rxd5 {[%clk 0:01:43.9]} 30. Rxc7 {[%clk 0:00:56.8]} 30... Qd3
{[%clk 0:01:43.9]} 31. h4 {[%clk 0:00:56]} 31... Qxf1+ {[%clk 0:01:44.4]} 32.
Kh2 {[%clk 0:00:54]} 32... Rd1 {[%clk 0:01:46.3]} 33. Qxf1 {[%clk 0:00:53.1]}
33... Rxf1 {[%clk 0:01:47.5]} 0-1

[Event "*** Titled Tuesday Blitz"]
[Site "Chess.com"]
[Date "2019.05.07"]
[Round "2"]
[White "NM2019"]
[Black "SwamiChaturanga"]
[Result "1-0"]
[WhiteElo "2151"]
[BlackElo "2011"]
[TimeControl "180+2"]
[EndTime "13:21:33 PDT"]
[Termination "NM2019 won by resignation"]

1. c4 {[%clk 0:03:01.7]} 1... g6 {[%clk 0:03:00.8]} 2. Nf3 {[%clk 0:03:02.7]}
2... Bg7 {[%clk 0:03:02.1]} 3. g3 {[%clk 0:03:04.2]} 3... b6 {[%clk 0:03:03.3]}
4. Bg2 {[%clk 0:03:05.8]} 4... Bb7 {[%clk 0:03:04]} 5. O-O {[%clk 0:03:07.2]}
5... e6 {[%clk 0:02:57.6]} 6. Nc3 {[%clk 0:03:08.5]} 6... h5 {[%clk 0:02:54.8]}
7. d4 {[%clk 0:03:09.2]} 7... d6 {[%clk 0:02:42.1]} 8. e4 {[%clk 0:03:06.5]}
8... Qd7 {[%clk 0:02:27.6]} 9. Bg5 {[%clk 0:03:03.6]} 9... a5 {[%clk 0:02:23.1]}
10. Rc1 {[%clk 0:03:03.9]} 10... Na6 {[%clk 0:02:03]} 11. a3 {[%clk 0:03:04.6]}
11... f6 {[%clk 0:01:37.9]} 12. Be3 {[%clk 0:03:03.8]} 12... Nh6 {[%clk
0:01:29.7]} 13. Bh3 {[%clk 0:03:04.9]} 13... Ng4 {[%clk 0:01:30.2]} 14. d5
{[%clk 0:03:00.6]} 14... O-O {[%clk 0:01:10.2]} 15. Nh4 {[%clk 0:03:00.5]} 15...
f5 {[%clk 0:00:56.1]} 16. Nxg6 {[%clk 0:02:57.7]} 16... Rf6 {[%clk 0:00:56.9]}
17. Nf4 {[%clk 0:02:54.9]} 17... e5 {[%clk 0:00:31.3]} 18. Nxh5 {[%clk
0:02:53.6]} 18... Rh6 {[%clk 0:00:28]} 19. Bxg4 {[%clk 0:02:50]} 19... fxg4
{[%clk 0:00:14.4]} 20. Bxh6 {[%clk 0:02:49.9]} 20... Bh8 {[%clk 0:00:15.7]} 21.
Bg5 {[%clk 0:02:42.9]} 21... Rf8 {[%clk 0:00:12.1]} 22. f3 {[%clk 0:02:35.5]}
22... Qh7 {[%clk 0:00:09.1]} 23. fxg4 {[%clk 0:02:34.2]} 23... Rxf1+ {[%clk
0:00:09.1]} 24. Qxf1 {[%clk 0:02:35.4]} 24... Bc8 {[%clk 0:00:09.8]} 25. h3
{[%clk 0:02:33.7]} 25... Nc5 {[%clk 0:00:09.9]} 26. Bf6 {[%clk 0:02:29]} 26...
Nxe4 {[%clk 0:00:10]} 27. Bxh8 {[%clk 0:02:25.4]} 27... Kxh8 {[%clk 0:00:09.7]}
28. Qf8+ {[%clk 0:02:23.5]} 1-0

[Event "*** Titled Tuesday Blitz"]
[Site "Chess.com"]
[Date "2019.05.07"]
[Round "2"]
[White "enriquetejedor"]
[Black "Alexander_Donchenko"]
[Result "1-0"]
[WhiteElo "2589"]
[BlackElo "2791"]
[TimeControl "180+2"]
[EndTime "13:21:37 PDT"]
[Termination "enriquetejedor won by resignation"]

1. e4 {[%clk 0:02:53.4]} 1... c6 {[%clk 0:03:01.2]} 2. Nc3 {[%clk 0:02:53.4]}
2... d5 {[%clk 0:03:03.1]} 3. Nf3 {[%clk 0:02:54.8]} 3... dxe4 {[%clk
0:03:03.8]} 4. Nxe4 {[%clk 0:02:56.7]} 4... Nf6 {[%clk 0:03:05.3]} 5. Nxf6+
{[%clk 0:02:57.1]} 5... exf6 {[%clk 0:03:07.2]} 6. d4 {[%clk 0:02:58.3]} 6...
Bd6 {[%clk 0:03:08.7]} 7. Bd3 {[%clk 0:02:54.7]} 7... O-O {[%clk 0:03:09]} 8.
O-O {[%clk 0:02:52.6]} 8... Bg4 {[%clk 0:03:09.1]} 9. h3 {[%clk 0:02:44.7]} 9...
Bh5 {[%clk 0:03:10.2]} 10. c3 {[%clk 0:02:43.2]} 10... Re8 {[%clk 0:03:10.8]}
11. Be3 {[%clk 0:02:18.4]} 11... Na6 {[%clk 0:03:01.7]} 12. Be2 {[%clk
0:02:16.6]} 12... Nc7 {[%clk 0:02:57.7]} 13. Re1 {[%clk 0:02:15.1]} 13... Nd5
{[%clk 0:02:56.6]} 14. Bd2 {[%clk 0:02:16.6]} 14... b5 {[%clk 0:02:34.8]} 15.
Kf1 {[%clk 0:02:15.5]} 15... Bc7 {[%clk 0:02:28.3]} 16. Ng1 {[%clk 0:02:16.3]}
16... Bg6 {[%clk 0:02:26.9]} 17. Bh5 {[%clk 0:02:12.8]} 17... Rxe1+ {[%clk
0:02:19]} 18. Bxe1 {[%clk 0:02:13.7]} 18... Be4 {[%clk 0:01:55.7]} 19. Bf3
{[%clk 0:02:11]} 19... f5 {[%clk 0:01:56.4]} 20. Bxe4 {[%clk 0:02:05.9]} 20...
fxe4 {[%clk 0:01:57.8]} 21. Qg4 {[%clk 0:02:07.5]} 21... e3 {[%clk 0:01:52.3]}
22. Nf3 {[%clk 0:02:05.2]} 22... Qf6 {[%clk 0:01:46.9]} 23. Qd7 {[%clk
0:02:02.6]} 23... Rd8 {[%clk 0:01:41.4]} 24. Qg4 {[%clk 0:02:00.3]} 24... Re8
{[%clk 0:01:34.2]} 25. Kg1 {[%clk 0:01:54.2]} 25... g6 {[%clk 0:01:22.4]} 26. a4
{[%clk 0:01:45.5]} 26... a6 {[%clk 0:01:19.7]} 27. axb5 {[%clk 0:01:45.7]} 27...
axb5 {[%clk 0:01:21.6]} 28. Qd7 {[%clk 0:01:43.6]} 28... h5 {[%clk 0:01:16.3]}
29. Qxe8+ {[%clk 0:01:41]} 29... Kg7 {[%clk 0:01:13.7]} 30. Ne5 {[%clk
0:01:37.5]} 30... Nf4 {[%clk 0:01:07]} 31. Qxf7+ {[%clk 0:01:32.2]} 31... Qxf7
{[%clk 0:01:07.9]} 32. Nxf7 {[%clk 0:01:33.7]} 32... exf2+ {[%clk 0:01:07.3]}
33. Bxf2 {[%clk 0:01:34.8]} 33... Kxf7 {[%clk 0:01:06.9]} 34. Ra7 {[%clk
0:01:35.8]} 34... Nd5 {[%clk 0:01:06.8]} 35. Bg3 {[%clk 0:01:36]} 1-0